bitfinex-derivatives/quotes_BNBF0:USTF0_20250413
["timestamp","ask_amount","ask_price","bid_price","bid_amount"]
[1744582366565,0.58683524,583.65,583.12,0.735]
[1744582366763,0.58683524,583.64,583.12,0.735]
[1744582366961,0.58683524,583.63,583.12,0.735]
[1744582367165,0.58683524,583.62,583.12,0.735]
[1744582367359,0.58683524,583.61,583.12,0.735]
[1744582367565,0.58683524,583.6,583.12,0.735]
[1744582367767,0.58683524,583.59,583.12,0.735]
[1744582367966,0.58683524,583.58,583.12,0.735]
[1744582368167,0.58677754,583.57,583.12,0.735]
[1744582368368,0.58677754,583.56,583.12,0.735]
[1744582368670,0.58677754,583.55,583.13,0.561]
[1744582368872,0.58677754,583.54,583.13,0.561]
[1744582369065,0.216,583.84,583.13,0.561]
[1744582369066,0.58677754,583.53,583.13,0.561]
[1744582369265,0.58677754,583.52,583.13,0.561]
[1744582369469,0.58677754,583.51,583.13,0.561]
[1744582369772,0.58687753,583.5,583.13,0.561]
[1744582369967,0.58687753,583.49,583.13,0.561]
[1744582370166,0.58687753,583.48,583.13,0.561]
[1744582370365,0.58687753,583.47,583.13,0.561]
[1744582370574,0.58687753,583.46,583.13,0.561]
[1744582370769,0.58687753,583.45,583.13,0.561]
[1744582370968,0.58687753,583.44,583.13,0.561]
[1744582371170,0.58687753,583.43,583.13,0.561]
[1744582371370,0.58687753,583.42,583.13,0.561]
[1744582371571,0.58681837,583.41,583.13,0.561]
[1744582371773,0.58681837,583.4,583.13,0.561]
[1744582371973,0.58681837,583.39,583.13,0.561]
[1744582372167,0.58681837,583.38,583.13,0.561]
[1744582372368,0.58681837,583.37,583.13,0.561]
[1744582372572,0.58681837,583.36,583.13,0.561]
[1744582372871,0.58681837,583.35,583.13,0.561]
[1744582373072,0.58681837,583.34,583.13,0.561]
[1744582373267,0.58681837,583.33,583.13,0.561]
[1744582373467,0.58681837,583.32,583.13,0.561]
[1744582373671,0.216,583.84,583.13,0.561]
[1744582373672,0.58681837,583.31,583.13,0.561]
[1744582373867,0.58681837,583.3,583.13,0.561]
[1744582374070,0.58681837,583.29,583.13,0.561]
[1744582374271,0.58681837,583.28,583.13,0.561]
[1744582374472,0.58668486,583.27,583.13,0.561]
[1744582374674,0.58668486,583.26,583.13,0.561]
[1744582374876,0.58668486,583.25,583.13,0.561]
[1744582375174,0.58668486,583.24,583.13,0.561]
[1744582375373,0.216,583.84,583.13,0.561]
[1744582375574,0.90073156,583.83,583.13,0.561]
[1744582375869,0.90073156,583.82,583.13,0.561]
[1744582376073,0.90073156,583.81,583.13,0.561]
[1744582376368,0.216,583.84,583.13,0.561]
[1744582376369,0.90073156,583.8,583.13,0.561]
[1744582376569,0.90073156,583.79,583.13,0.561]
[1744582376772,0.216,583.84,583.13,0.561]
[1744582376773,0.90073156,583.78,583.13,0.561]
[1744582376973,0.90073178,583.77,583.13,0.561]
[1744582377173,0.90073178,583.76,583.13,0.561]
[1744582377375,0.90073178,583.75,583.13,0.561]
[1744582377575,0.90073178,583.74,583.13,0.561]
[1744582377771,0.90073178,583.73,583.13,0.561]
[1744582377977,0.90073178,583.72,583.13,0.561]
[1744582378177,0.90073178,583.71,583.13,0.561]
[1744582378378,0.90073178,583.7,583.13,0.561]
[1744582378579,0.90073296,583.69,583.13,0.561]
[1744582378778,0.58661427,583.68,583.13,0.561]
[1744582378978,0.58661427,583.67,583.13,0.561]
[1744582379174,0.58661427,583.66,583.13,0.561]
[1744582379372,0.58661427,583.65,583.13,0.561]
[1744582379575,0.58661427,583.64,583.13,0.561]
[1744582379774,0.58661427,583.63,583.13,0.561]
[1744582379972,0.58661427,583.62,583.13,0.561]
[1744582380184,0.58661427,583.61,583.13,0.561]
[1744582380376,0.58661427,583.6,583.13,0.561]
[1744582380579,0.58661427,583.59,583.13,0.561]
[1744582380778,0.58661427,583.58,583.13,0.561]
[1744582380976,0.58661427,583.57,583.13,0.561]
[1744582381178,0.58661427,583.56,583.13,0.561]
[1744582381378,0.58661427,583.55,583.13,0.561]
[1744582381578,0.216,583.84,583.13,0.561]
[1744582381579,0.58661427,583.54,583.13,0.561]
[1744582381775,0.58661427,583.53,583.13,0.561]
[1744582381975,0.58661427,583.52,583.13,0.561]
[1744582382176,0.58661427,583.51,583.13,0.561]
[1744582382381,0.58661427,583.5,583.13,0.561]
[1744582382581,0.58661427,583.49,583.13,0.561]
[1744582382783,0.58661427,583.48,583.13,0.561]
[1744582383083,0.58661427,583.47,583.13,0.561]
[1744582383284,0.58661427,583.46,583.13,0.561]
[1744582383480,0.58661427,583.45,583.13,0.561]
[1744582383679,0.58661427,583.44,583.13,0.561]
[1744582383887,0.58661427,583.43,583.13,0.561]
[1744582384086,0.58661427,583.42,583.13,0.561]
[1744582384285,0.58661427,583.41,583.13,0.561]
[1744582384482,0.58661427,583.4,583.13,0.561]
[1744582384683,0.58661427,583.39,583.13,0.561]
[1744582384883,0.58661427,583.38,583.13,0.561]
[1744582385083,0.58661427,583.37,583.13,0.561]
[1744582385283,0.58661427,583.36,583.13,0.561]
[1744582385484,0.58661427,583.35,583.13,0.561]
[1744582385686,0.58661427,583.34,583.13,0.561]
[1744582385985,0.58661427,583.33,583.13,0.561]
[1744582386185,0.58661427,583.32,583.13,0.561]
[1744582386384,0.58661427,583.31,583.13,0.561]
[1744582386683,0.58661427,583.3,583.13,0.561]
[1744582386884,0.58542909,583.29,583.13,0.561]
[1744582387081,0.58542909,583.28,583.13,0.561]
[1744582387285,0.58542909,583.27,583.13,0.561]
[1744582387486,0.58542909,583.26,583.13,0.561]
[1744582387786,0.58542909,583.25,583.13,0.561]
[1744582387983,0.58542909,583.24,583.13,0.561]
[1744582388185,0.58542909,583.23,583.13,0.561]
[1744582388386,0.58542909,583.22,583.13,0.561]
[1744582388585,0.58542909,583.21,583.13,0.561]
[1744582388784,0.58542909,583.2,583.13,0.561]
[1744582388984,0.58542909,583.19,583.13,0.561]
[1744582389285,0.58542909,583.18,583.13,0.561]
[1744582389489,0.58542909,583.17,583.13,0.561]
[1744582389689,0.58542909,583.16,583.13,0.561]
[1744582389890,0.58542909,583.15,583.13,0.561]
[1744582390091,0.58542909,583.14,583.13,0.561]
[1744582390785,0.58542909,583.82,583.13,0.561]
[1744582390990,1.2422561,583.81,583.13,0.561]
[1744582391290,1.24226197,583.8,583.13,0.561]
[1744582391492,1.24226784,583.79,583.13,0.561]
[1744582391689,1.24227371,583.78,583.13,0.561]
[1744582391987,1.24228036,583.77,583.13,0.561]
[1744582392192,1.24228623,583.76,583.13,0.561]
[1744582392492,1.24229209,583.75,583.13,0.561]
[1744582392693,0.89967968,583.74,583.13,0.561]
[1744582392890,0.89967968,583.73,583.13,0.561]
[1744582393096,0.89967968,583.72,583.13,0.561]
[1744582393292,0.89967968,583.71,583.13,0.561]
[1744582393492,0.89845228,583.7,583.13,0.561]
[1744582393696,0.89845228,583.69,583.13,0.561]
[1744582393889,0.89845228,583.68,583.13,0.561]
[1744582394090,0.89845228,583.67,583.13,0.561]
[1744582394290,0.89845228,583.66,583.13,0.561]
[1744582394596,0.89845228,583.65,583.09,0.514]
[1744582394796,0.89845228,583.64,583.09,0.514]
[1744582394995,0.58420686,583.63,583.09,0.514]
[1744582395197,0.89845212,583.62,583.09,0.514]
[1744582395497,0.89845212,583.61,583.09,0.514]
[1744582395694,0.89845212,583.6,583.1,0.751]
[1744582395893,0.89845212,583.59,583.1,0.751]
[1744582396094,0.89845212,583.58,583.1,0.751]
[1744582396295,0.89845212,583.57,583.1,0.751]
[1744582396495,0.89845212,583.56,583.1,0.751]
[1744582396699,0.89845212,583.55,583.1,0.751]
[1744582396895,0.89845104,583.54,583.1,0.751]
[1744582397096,0.89845104,583.53,583.1,0.751]
[1744582397400,0.58420686,583.52,583.1,0.751]
[1744582397599,0.58420686,583.51,583.1,0.751]
[1744582397801,0.58420686,583.5,583.1,0.751]
[1744582398101,0.58420686,583.49,583.11,0.398]
[1744582398299,0.58420686,583.48,583.11,0.398]
[1744582398494,0.58420686,583.47,583.11,0.398]
[1744582398694,0.58420686,583.46,583.11,0.398]
[1744582398895,0.58420686,583.45,583.11,0.398]
[1744582399097,0.216,583.61,583.11,0.398]
[1744582399098,0.58420686,583.44,583.11,0.398]
[1744582399298,0.58420686,583.43,583.11,0.398]
[1744582399496,0.58420686,583.42,583.11,0.398]
[1744582399695,0.58420686,583.41,583.11,0.398]
[1744582399898,0.58420686,583.4,583.11,0.398]
[1744582400095,0.58420686,583.39,583.11,0.398]
[1744582400300,0.58420686,583.38,583.11,0.398]
[1744582400599,0.58420686,583.37,583.11,0.398]
[1744582400801,0.58420686,583.36,583.11,0.398]
[1744582400998,0.58420686,583.35,583.11,0.398]
[1744582401198,0.58420686,583.34,583.11,0.398]
[1744582401395,0.58420686,583.33,583.11,0.398]
[1744582401595,0.58420686,583.32,583.11,0.398]
[1744582401894,0.58420686,583.31,583.11,0.398]
[1744582402094,0.58420686,583.3,583.11,0.398]
[1744582402299,0.58420686,583.29,583.11,0.398]
[1744582402595,0.58420686,583.28,583.11,0.398]
[1744582402794,0.58420686,583.27,583.11,0.398]
[1744582402999,0.216,583.61,583.11,0.398]
[1744582403199,0.58355795,583.6,583.11,0.398]
[1744582403400,0.58355795,583.59,583.11,0.398]
[1744582403600,0.58355795,583.58,583.11,0.398]
[1744582403800,0.58355795,583.57,583.11,0.398]
[1744582404000,0.58355795,583.56,583.11,0.398]
[1744582404196,0.58355795,583.55,583.11,0.398]
[1744582404400,0.58355795,583.54,583.11,0.398]
[1744582404596,0.58355795,583.53,583.11,0.398]
[1744582404801,0.58355795,583.52,583.11,0.398]
[1744582405001,0.58355795,583.51,583.11,0.398]
[1744582405202,0.58355795,583.5,583.11,0.398]
[1744582405396,0.58355795,583.49,583.11,0.398]
[1744582405600,0.58355795,583.48,583.11,0.398]
[1744582405896,0.58355795,583.47,583.11,0.398]
[1744582406099,0.58355795,583.46,583.11,0.398]
[1744582406295,0.58355795,583.45,583.11,0.398]
[1744582406497,0.216,583.61,583.11,0.398]
[1744582406498,0.58355795,583.44,583.11,0.398]
[1744582406702,0.58355795,583.43,583.11,0.398]
[1744582406902,0.58355795,583.42,583.11,0.398]
[1744582407202,0.58355795,583.41,583.11,0.398]
[1744582407402,0.58355795,583.4,583.11,0.398]
[1744582407602,0.216,583.61,583.11,0.398]
[1744582407801,0.58348811,583.6,583.11,0.398]
[1744582408102,0.58348811,583.59,583.11,0.398]
[1744582408301,0.58348811,583.58,583.11,0.398]
[1744582408498,0.58348811,583.57,583.11,0.398]
[1744582408701,0.58348811,583.56,583.11,0.398]
[1744582408896,0.58348811,583.55,583.11,0.398]
[1744582409095,0.58348811,583.54,583.11,0.398]
[1744582409302,0.58348811,583.53,583.11,0.398]
[1744582409499,0.58348811,583.52,583.11,0.398]
[1744582409703,0.58348811,583.51,583.11,0.398]
[1744582410003,0.58348811,583.5,583.11,0.398]
[1744582410201,0.58348811,583.49,583.11,1.002]
[1744582410401,0.58348811,583.48,583.11,1.002]
[1744582410602,0.58348811,583.47,583.11,1.002]
[1744582410801,0.58348811,583.46,583.11,1.002]
[1744582410998,0.58348811,583.45,583.11,1.002]
[1744582411202,0.58356738,583.44,583.11,1.002]
[1744582411501,0.58356738,583.43,583.11,1.002]
[1744582411803,0.58356738,583.42,583.11,1.002]
[1744582412004,0.58356738,583.41,583.11,1.002]
[1744582412201,0.58356738,583.4,583.11,1.002]
[1744582412401,0.58356738,583.39,583.11,1.002]
[1744582412600,0.216,583.61,583.11,1.002]
[1744582412903,0.58365046,583.6,583.11,1.002]
[1744582413101,0.58365046,583.59,583.11,1.002]
[1744582413307,0.58365046,583.58,583.11,1.002]
[1744582413507,0.58365046,583.57,583.11,1.002]
[1744582413702,0.58365046,583.56,583.11,1.002]
[1744582413908,0.58365046,583.55,583.11,1.002]
[1744582414101,0.58365046,583.54,583.11,1.002]
[1744582414304,0.58365046,583.53,583.11,1.002]
[1744582414502,0.216,583.61,583.11,1.002]
[1744582414503,0.58365046,583.52,583.11,1.002]
[1744582414706,0.58365046,583.51,583.11,1.002]
[1744582414907,0.58365046,583.5,583.11,1.002]
[1744582415108,0.58365046,583.49,583.11,1.002]
[1744582415307,0.58365046,583.48,583.11,1.002]
[1744582415608,0.58365046,583.47,583.11,1.002]
[1744582415809,0.58365046,583.46,583.11,1.002]
[1744582416108,0.58365046,583.45,583.11,1.002]
[1744582416308,0.58365046,583.44,583.11,1.002]
[1744582416503,0.58365046,583.43,583.11,1.002]
[1744582416706,0.58365046,583.42,583.11,1.002]
[1744582416903,0.58365046,583.41,583.11,1.002]
[1744582417103,0.58365046,583.4,583.11,1.002]
[1744582417307,0.58365046,583.39,583.11,1.002]
[1744582417509,0.58365046,583.38,583.11,1.002]
[1744582417808,0.58365046,583.37,583.11,1.002]
[1744582418008,0.58365046,583.36,583.11,1.002]
[1744582418203,0.34261241,583.75,583.11,1.002]
[1744582418408,0.216,583.51,583.11,1.002]
[1744582418606,0.58406621,583.5,583.11,1.002]
[1744582418803,0.58406621,583.49,583.11,1.002]
[1744582419008,0.58406621,583.48,583.11,1.002]
[1744582419209,0.58406621,583.47,583.11,1.002]
[1744582419406,0.58406621,583.46,583.11,1.002]
[1744582419708,0.58406621,583.45,583.11,1.002]
[1744582419904,0.58406621,583.44,583.11,1.002]
[1744582420108,0.58406621,583.43,583.11,1.002]
[1744582420304,0.58406621,583.42,583.11,1.002]
[1744582420508,0.216,583.51,583.11,1.002]
[1744582420509,0.58406621,583.41,583.11,1.002]
[1744582420710,0.58406621,583.4,583.11,1.002]
[1744582420910,0.58406621,583.39,583.11,1.002]
[1744582421110,0.58406621,583.38,583.11,1.002]
[1744582421313,0.58406621,583.37,583.11,1.002]
[1744582421512,0.58473653,583.36,583.11,1.002]
[1744582421711,0.58473653,583.35,583.11,1.002]
[1744582421911,0.58473653,583.34,583.11,1.002]
[1744582422107,0.216,583.51,583.11,1.002]
[1744582422108,0.58473653,583.33,583.11,1.002]
[1744582422309,0.58473653,583.32,583.11,1.002]
[1744582422507,0.58473653,583.31,583.11,1.002]
[1744582422708,0.216,583.51,583.11,1.002]
[1744582422912,0.58501695,583.5,583.11,1.002]
[1744582423212,0.58501695,583.49,583.11,1.002]
[1744582423412,0.58501695,583.48,583.11,1.002]
[1744582423614,0.58501695,583.47,583.11,1.002]
[1744582423814,0.58515754,583.46,583.11,1.002]
[1744582424112,0.58515754,583.45,583.11,1.002]
[1744582424313,0.58515754,583.44,583.11,1.002]
[1744582424513,0.58515754,583.43,583.11,1.002]
[1744582424715,0.58515754,583.42,583.11,1.002]
[1744582425013,0.58515754,583.41,583.11,1.002]
[1744582425215,0.58515754,583.4,583.11,1.002]
[1744582425409,0.58515754,583.39,583.11,1.002]
[1744582425608,0.58515754,583.38,583.11,1.002]
[1744582425819,0.58515754,583.37,583.11,1.002]
[1744582426110,0.58515754,583.36,583.11,1.002]
[1744582426413,0.58515754,583.35,583.11,1.002]
[1744582426614,0.58515754,583.34,583.11,1.002]
[1744582426815,0.58515754,583.33,583.11,1.002]
[1744582427012,0.58515754,583.32,583.11,1.002]
[1744582427209,0.58515754,583.31,583.11,1.002]
[1744582427508,0.216,583.51,583.11,1.002]
[1744582427509,0.58515754,583.3,583.11,1.002]
[1744582427710,0.216,583.51,583.11,1.002]
[1744582427711,0.58515754,583.29,583.11,1.002]
[1744582427913,0.58515754,583.28,583.11,1.002]
[1744582428118,0.58515754,583.27,583.11,0.604]
[1744582428408,0.216,583.51,583.11,0.604]
[1744582428409,0.58515754,583.26,583.11,0.604]
[1744582428613,0.58515754,583.25,583.11,0.604]
[1744582428809,0.58515754,583.24,583.11,0.604]
[1744582429014,0.58515754,583.23,583.11,0.604]
[1744582429314,0.58515754,583.22,583.11,0.604]
[1744582429516,0.58515754,583.21,583.11,0.604]
[1744582429814,0.58515754,583.2,583.11,0.604]
[1744582430015,0.58515754,583.19,583.11,0.604]
[1744582430315,0.58515754,583.18,583.11,0.604]
[1744582430515,0.58515754,583.17,583.11,0.604]
[1744582430714,0.58515754,583.16,583.11,0.604]
[1744582430916,0.58515754,583.15,583.11,0.604]
[1744582431117,0.58515754,583.14,583.11,0.604]
[1744582431312,0.58515754,583.13,583.11,0.604]
[1744582431517,0.58515754,583.12,583.11,0.604]
[1744582432616,0.58610018,583.12,583.11,0.604]
[1744582446326,0.58620508,583.12,583.11,0.604]
[1744582451537,0.58628587,583.12,583.11,0.604]
[1744582452738,0.216,583.51,583.11,0.604]
[1744582452939,0.58624472,583.5,583.11,0.604]
[1744582453239,0.58624472,583.49,583.11,0.604]
[1744582453440,0.58624472,583.48,583.11,0.604]
[1744582453637,0.58624472,583.47,583.11,0.604]
[1744582453940,0.58624472,583.46,583.11,0.604]
[1744582454136,0.58624472,583.45,583.11,0.604]
[1744582454341,0.58624472,583.44,583.11,0.604]
[1744582454540,0.58624472,583.43,583.11,0.604]
[1744582454741,0.58624472,583.42,583.11,0.604]
[1744582454941,0.58624472,583.41,583.11,0.604]
[1744582455141,0.58624472,583.4,583.11,0.604]
[1744582455342,0.58624472,583.39,583.11,0.604]
[1744582455542,0.58624472,583.38,583.11,0.604]
[1744582455743,0.58624472,583.37,583.11,0.604]
[1744582455937,0.58624472,583.36,583.11,0.604]
[1744582456143,0.58624472,583.35,583.11,0.604]
[1744582456342,0.58624472,583.34,583.11,0.604]
[1744582456645,0.58624472,583.33,583.11,0.604]
[1744582456842,0.58624472,583.32,583.11,0.604]
[1744582457137,0.58624472,583.31,583.11,0.604]
[1744582457443,0.58624472,583.3,583.11,0.604]
[1744582457642,0.58624472,583.29,583.11,0.604]
[1744582457845,0.58624472,583.28,583.11,0.604]
[1744582458143,0.58624472,583.27,583.11,0.604]
[1744582458342,0.58624472,583.26,583.11,0.604]
[1744582458543,0.58624472,583.25,583.11,0.604]
[1744582458743,0.58624472,583.24,583.11,0.604]
[1744582458941,0.58624472,583.23,583.11,0.604]
[1744582459146,0.58624472,583.22,583.11,0.604]
[1744582459347,0.58624472,583.21,583.04,0.599]
[1744582459646,0.34261241,583.75,583.04,0.599]
[1744582459847,0.90046195,583.74,583.04,0.599]
[1744582460145,0.90046195,583.73,583.04,0.599]
[1744582460348,0.90045742,583.72,583.04,0.599]
[1744582460549,0.90045742,583.71,583.04,0.599]
[1744582460749,0.5863122,583.7,583.04,0.599]
[1744582460944,0.90045965,583.69,583.04,0.599]
[1744582461142,0.5863122,583.68,583.04,0.599]
[1744582461345,0.90045965,583.67,583.04,0.599]
[1744582461547,0.90045965,583.66,583.04,0.599]
[1744582461748,0.90045965,583.65,583.04,0.599]
[1744582462045,0.90045965,583.64,583.04,1.175]
[1744582462249,0.90045098,583.63,583.04,1.175]
[1744582462450,0.58630353,583.62,583.04,1.175]
[1744582462649,0.58630353,583.61,583.04,1.175]
[1744582462850,0.58630353,583.6,583.04,1.175]
[1744582463050,0.58630353,583.59,583.04,1.175]
[1744582463350,0.58630353,583.58,583.04,1.175]
[1744582463549,0.58630353,583.57,583.04,1.175]
[1744582463743,0.58630353,583.56,583.04,1.175]
[1744582463948,0.58630353,583.55,583.04,1.175]
[1744582464145,0.58630353,583.54,583.04,1.175]
[1744582464350,0.58630353,583.53,583.04,1.175]
[1744582464544,0.58630353,583.52,583.04,1.175]
[1744582464747,0.58630353,583.51,583.04,1.175]
[1744582464944,0.58630353,583.5,583.04,1.175]
[1744582465146,0.58630353,583.49,583.04,1.175]
[1744582465448,0.58630353,583.48,583.04,1.175]
[1744582465651,0.58630353,583.47,583.04,1.175]
[1744582465848,0.58630353,583.46,583.04,1.175]
[1744582466050,0.58630353,583.45,583.04,1.175]
[1744582466346,0.58630353,583.44,583.04,1.175]
[1744582466549,0.58630353,583.43,583.04,1.175]
[1744582466751,0.58630353,583.42,583.04,1.175]
[1744582466952,0.58630353,583.41,583.04,1.175]
[1744582467153,0.58630353,583.4,583.04,1.175]
[1744582467355,0.58630353,583.39,583.04,1.175]
[1744582467551,0.58630353,583.38,583.04,1.175]
[1744582467755,0.216,583.74,583.04,1.175]
[1744582467756,0.58630353,583.37,583.04,1.175]
[1744582467950,0.58630353,583.36,583.04,1.175]
[1744582468150,0.58630353,583.35,583.04,1.175]
[1744582468453,0.58630353,583.34,583.04,1.175]
[1744582468653,0.58630353,583.33,583.04,1.175]
[1744582468855,0.58630353,583.32,583.04,1.175]
[1744582469057,0.58630353,583.31,583.04,1.175]
[1744582469255,0.58630353,583.3,583.04,1.175]
[1744582469457,0.58630353,583.29,583.04,1.175]
[1744582469657,0.58630353,583.28,583.04,1.175]
[1744582469858,0.58630353,583.27,583.04,1.175]
[1744582470057,0.58630353,583.26,583.04,1.175]
[1744582470253,0.58630353,583.25,583.04,1.175]
[1744582470456,0.58630353,583.24,583.04,1.175]
[1744582470758,0.58630353,583.23,583.04,1.175]
[1744582471052,0.216,583.74,583.04,1.175]
[1744582471259,0.90043622,583.73,583.04,1.175]
[1744582471554,0.90043622,583.72,583.04,1.175]
[1744582471759,0.90043622,583.71,583.04,1.175]
[1744582471959,0.58629939,583.7,583.04,1.175]
[1744582472258,0.58629939,583.69,583.04,1.731]
[1744582472453,0.58629939,583.68,583.04,2.19]
[1744582472658,0.58629939,583.67,583.04,2.19]
[1744582472960,0.58629939,583.66,583.04,2.19]
[1744582473158,0.58629939,583.65,583.04,2.19]
[1744582473356,0.58629939,583.64,583.04,2.19]
[1744582473554,0.58629939,583.63,583.04,2.19]
[1744582473760,0.58629939,583.62,583.04,2.19]
[1744582473958,0.58629939,583.61,583.04,2.19]
[1744582474157,0.58629939,583.6,583.04,2.19]
[1744582474360,0.58629939,583.59,583.04,2.19]
[1744582474561,0.216,583.74,583.04,2.19]
[1744582474762,0.58629327,583.73,583.04,2.19]
[1744582475057,0.58629327,583.72,583.04,2.19]
[1744582475258,0.58629327,583.71,583.04,2.19]
[1744582475459,0.58629327,583.7,583.04,2.19]
[1744582475661,0.58629327,583.69,583.04,2.19]
[1744582475957,0.58629327,583.68,583.04,2.19]
[1744582476162,0.58629327,583.67,583.04,2.19]
[1744582476458,0.58629327,583.66,583.04,2.19]
[1744582476658,0.58629327,583.65,583.04,2.19]
[1744582476861,0.58629327,583.64,583.04,2.19]
[1744582477061,0.58629327,583.63,583.04,2.19]
[1744582477259,0.58629327,583.62,583.04,2.19]
[1744582477460,0.58629327,583.61,583.04,2.19]
[1744582477661,0.58629327,583.6,583.04,2.19]
[1744582477860,0.58629327,583.59,583.04,2.19]
[1744582478060,0.58629327,583.58,583.04,2.19]
[1744582478259,0.58629327,583.57,583.04,2.19]
[1744582478464,0.58629327,583.56,583.04,2.19]
[1744582478665,0.58629327,583.55,583.04,2.19]
[1744582478867,0.216,583.74,583.04,2.19]
[1744582479163,0.58624518,583.73,583.04,2.19]
[1744582479367,0.31414184,583.72,583.04,2.19]
[1744582479767,0.58624518,583.71,583.04,2.19]
[1744582479967,0.31414184,583.7,583.04,2.19]
[1744582480169,0.90038702,583.7,583.04,2.19]
[1744582480364,0.31414184,583.69,583.04,2.19]
[1744582480769,0.58624518,583.68,583.04,2.781]
[1744582480968,0.31414184,583.67,583.04,3.332]
[1744582481371,0.58624518,583.66,583.04,3.332]
[1744582481565,0.31414184,583.65,583.04,3.332]
[1744582482364,0.216,583.74,583.04,3.332]
[1744582482569,0.90049211,583.73,583.04,3.332]
[1744582482765,0.90049211,583.72,583.04,3.332]
[1744582482969,0.34261241,583.75,583.04,3.332]
[1744582483163,0.90050853,583.74,583.04,3.332]
[1744582483368,0.90050853,583.73,583.04,3.332]
[1744582483668,0.90050853,583.72,583.04,3.332]
[1744582483864,0.90050853,583.71,583.04,3.332]
[1744582484069,0.90050853,583.7,583.04,3.332]
[1744582484268,0.90050853,583.69,583.04,3.332]
[1744582484565,0.58634277,583.68,583.04,3.332]
[1744582484770,0.90050299,583.67,583.04,3.332]
[1744582484970,0.90050299,583.66,583.04,3.332]
[1744582485270,0.58634277,583.65,583.04,3.332]
[1744582485469,0.58634277,583.64,583.04,3.332]
[1744582485669,0.58634277,583.63,583.04,3.332]
[1744582485870,0.58634277,583.62,583.04,3.332]
[1744582486064,0.5864229,583.61,583.04,3.332]
[1744582486268,0.5864229,583.6,583.04,3.332]
[1744582486467,0.5864229,583.59,583.04,3.332]
[1744582486666,0.5864229,583.58,583.04,3.332]
[1744582486865,0.5864229,583.57,583.04,3.332]
[1744582487171,0.5864229,583.56,583.04,3.332]
[1744582487373,0.5864229,583.55,583.04,3.332]
[1744582487671,0.5864229,583.54,583.04,3.332]
[1744582487971,0.5864229,583.53,583.04,3.332]
[1744582488167,0.5864229,583.52,583.04,3.332]
[1744582488372,0.5864229,583.51,583.04,3.332]
[1744582488567,0.5864229,583.5,583.04,3.332]
[1744582488767,0.5864229,583.49,583.04,3.332]
[1744582488971,0.5864229,583.48,583.04,3.332]
[1744582489171,0.5864229,583.47,583.04,3.332]
[1744582489369,0.5864229,583.46,583.04,3.332]
[1744582489570,0.58626752,583.45,583.04,3.332]
[1744582489770,0.58626752,583.44,583.04,3.332]
[1744582489972,0.58626752,583.43,583.04,3.332]
[1744582490170,0.58626752,583.42,583.04,3.332]
[1744582490372,0.58626752,583.41,583.04,2.274]
[1744582490569,0.58626752,583.4,583.04,2.274]
[1744582490774,0.58626752,583.39,583.04,2.274]
[1744582490976,0.58626752,583.38,583.04,2.274]
[1744582491178,0.58626752,583.37,583.04,2.274]
[1744582491377,0.58626752,583.36,583.04,2.274]
[1744582491578,0.58626752,583.35,583.04,2.274]
[1744582491779,0.58626752,583.34,583.04,2.274]
[1744582491980,0.58626752,583.33,583.04,2.274]
[1744582492280,0.58626752,583.32,583.04,2.274]
[1744582492475,0.58626752,583.31,583.04,2.274]
[1744582492679,0.58626752,583.3,583.04,2.274]
[1744582492874,0.58626752,583.29,583.04,2.274]